fUST/lending_fUST_20251031
["ID","MTS","AMOUNT","RATE_DAILY","PERIOD"]
[392751123,1761909038470,-1236.95149689,0.00035116,2]
[392751124,1761909038481,-24470.07710764,0.00035116,2]
[392751125,1761909038497,-1010.20523796,0.00035116,2]
[392751134,1761909040396,-186110.24432475,0.00035116,2]
[392751141,1761909043533,-6988.6496673,0.00035116,2]
[392751194,1761910232507,-154.19344,0.0003438,50]
[392751195,1761910232516,-598.0,0.00034785,2]
[392751196,1761910232525,-65.48897253,0.000348,30]
[392751197,1761910232634,-817.66121357,0.000348,30]
[392751198,1761910232643,-564.87880711,0.00034926,2]
[392751199,1761910232670,-1568.39879341,0.00034926,2]
[392751200,1761910232679,-188.0,0.00034999,2]
[392751201,1761910232688,-513.0,0.00034999,3]
[392751202,1761910232698,-10049.01625231,0.00035,14]
[392751204,1761910232708,-178.07935508,0.00035015,7]
[392751206,1761910232717,-207.84294615,0.00035015,7]
[392751208,1761910232727,-30492.41693102,0.00035016,2]
[392751239,1761910238617,-435.0,0.00035016,2]
[392751240,1761910238631,-2197.85359573,0.00035016,2]
[392751241,1761910238673,-13832.90854498,0.00035016,2]
[392751242,1761910238884,-928.98345371,0.00035016,2]
[392751243,1761910238897,-1703.45085993,0.00035016,2]
[392751272,1761910240687,-39528.00000002,0.00035016,2]
[392751274,1761910243630,-6910.68120582,0.00035016,2]
[392751287,1761910748524,193.509936,0.00013699,2]
[392751288,1761910748783,193.509936,0.00020187,2]
[392751295,1761910860049,263.0,0.0003,120]
[392751296,1761910927814,9612.990128,0.000255,2]
[392751297,1761910927835,387.009872,0.000255,2]
[392751298,1761910948041,614.30439062,0.00026,3]
[392751301,1761911109757,-170.0,0.00026,7]
[392751333,1761911143679,290.88548872,0.00026,3]
[392751371,1761911432777,-193.509936,0.00026676,2]
[392751372,1761911432790,-200.0,0.00032,120]
[392751373,1761911432803,-154.19344,0.00033088,2]
[392751376,1761911432816,-160.73417,0.00033101,2]
[392751378,1761911432828,-193.509936,0.00033165,2]
[392751380,1761911432843,-154.19344,0.00033379,50]
[392751381,1761911432856,-151.0,0.00033537,2]
[392751382,1761911432869,-303.40286522,0.00033537,2]
[392751383,1761911432881,-154.19344,0.00033743,2]
[392751384,1761911432894,-154.19344,0.0003384,50]
[392751386,1761911432907,-169.58352199,0.0003395,10]
[392751387,1761911432920,-200.0,0.00034,120]
[392751388,1761911432932,-154.19344,0.000343,50]
[392751390,1761911432941,-5.32770713,0.00034398,2]
[392751415,1761911438736,-148.86573287,0.00034398,2]
[392751417,1761911438746,-300.0,0.00034411,5]
[392751418,1761911438756,-164.81006826,0.00034575,30]
[392751420,1761911438767,-735.68876172,0.00034874,3]
[392751421,1761911438776,-164.81006826,0.00034877,30]
[392751422,1761911438785,-175.9207267,0.00034915,2]
[392751423,1761911438795,-10018.36186904,0.00034916,2]
[392751458,1761911440876,-370.00919999,0.00034916,2]
[392751524,1761911446908,-500.0,0.00034915,7]
[392751525,1761911446918,-500.0,0.00034915,7]
[392751526,1761911446927,-500.0,0.00034915,7]
[392751527,1761911446937,-500.0,0.00034915,7]
[392751528,1761911446947,-500.0,0.00034915,7]
[392751529,1761911446956,-500.0,0.00034915,7]
[392751530,1761911446965,-500.0,0.00034915,7]
[392751531,1761911446975,-225.33964024,0.00034915,7]
[392751532,1761911446985,-500.0,0.00034915,7]
[392751533,1761911446994,-500.0,0.00034915,2]
[392751534,1761911447004,-189.21015304,0.00034915,7]
[392751535,1761911447013,-500.0,0.00034915,2]
[392751536,1761911447023,-500.0,0.00034915,7]
[392751537,1761911447032,-300.40962357,0.00034915,7]
[392751538,1761911447041,-500.0,0.00034915,7]
[392751539,1761911447051,-500.0,0.00034915,7]
[392751540,1761911447060,-500.0,0.00034915,7]
[392751541,1761911447069,-500.0,0.00034915,7]
[392751542,1761911447078,-500.0,0.00034915,7]
[392751543,1761911447087,-500.0,0.00034915,2]
[392751544,1761911447098,-500.0,0.00034915,7]
[392751545,1761911447108,-500.0,0.00034915,7]
[392751546,1761911447117,-500.0,0.00034915,2]
[392751547,1761911447127,-500.0,0.00034915,7]
[392751548,1761911447136,-500.0,0.00034915,7]
[392751549,1761911447146,-500.0,0.00034915,7]
[392751550,1761911447157,-500.0,0.00034915,7]
[392751551,1761911447167,-500.0,0.00034915,7]
[392751552,1761911447176,-500.0,0.00034915,2]
[392751553,1761911447185,-500.0,0.00034915,7]
[392751554,1761911447194,-500.0,0.00034915,7]
[392751555,1761911447204,-322.87729473,0.00034915,2]
[392751556,1761911447213,-500.0,0.00034915,7]
[392751557,1761911447223,-500.0,0.00034915,7]
[392751558,1761911447232,-500.0,0.00034915,7]
[392751559,1761911447242,-500.0,0.00034915,2]
[392751560,1761911447255,-500.0,0.00034915,7]
[392751561,1761911447265,-500.0,0.00034915,7]
[392751562,1761911447274,-500.0,0.00034915,2]
[392751563,1761911447284,-500.0,0.00034915,2]
[392751564,1761911447293,-500.0,0.00034915,7]
[392751565,1761911447303,-466.38040074,0.00034915,7]
[392751566,1761911447312,-500.0,0.00034915,2]
[392751567,1761911447321,-500.0,0.00034915,7]
[392751568,1761911447332,-500.0,0.00034915,2]
[392751569,1761911447342,-500.0,0.00034915,2]
[392751570,1761911447352,-500.0,0.00034915,7]
[392751571,1761911447361,-2581.55085535,0.00034916,2]
[392751572,1761911447399,-837.92167534,0.00034916,2]
[392751573,1761911447410,-32827.28827212,0.00034916,2]
[392751586,1761912466121,4966.0,0.000255,2]
[392751588,1761912579916,2754.49683097,0.00037198,120]
[392751589,1761912615505,247.775146,0.0003013,120]
[392751626,1761912631852,-154.19344,0.00032027,5]
[392751628,1761912631863,-154.19344,0.00032252,2]
[392751630,1761912631873,-154.19344,0.00032265,5]
[392751631,1761912631882,-801.7961234,0.00032995,2]
[392751633,1761912631892,-258.612146,0.00032995,2]
[392751635,1761912631902,-1200.0,0.00033358,3]
[392751637,1761912631911,-300.0,0.00033359,3]
[392751638,1761912631921,-300.0,0.00033359,3]
[392751640,1761912631930,-253.10390009,0.00033359,3]
[392751722,1761912637796,-46.89609991,0.00033359,3]
[392751723,1761912637807,-300.0,0.00033359,2]
[392751724,1761912637819,-300.0,0.00033359,3]
[392751725,1761912637828,-357.34721562,0.0003336,2]
[392751726,1761912637838,-426.62133946,0.0003336,2]
[392751727,1761912637850,-216.60364866,0.0003336,2]
[392751728,1761912637862,-1142.3675789,0.0003336,2]
[392751729,1761912637871,-154.19344,0.000336,2]
[392751730,1761912637881,-154.19344,0.00033791,15]
[392751731,1761912637890,-154.19344,0.00034463,15]
[392751732,1761912637900,-602.2133857,0.00034712,30]
[392751733,1761912637910,-1113.25961601,0.00034718,2]
[392751734,1761912637920,-553.85003775,0.00034744,2]
[392751735,1761912637929,-2424.1433323,0.00034816,2]
[392751736,1761912637938,-4742.50522508,0.0003488,120]
[392751737,1761912637956,-14400.93888532,0.0003488,120]
[392751738,1761912637965,-177.57453084,0.0003488,40]
[392751739,1761912637975,-500.0,0.00034894,7]
[392751740,1761912637984,-500.0,0.00034894,7]
[392751741,1761912637994,-500.0,0.00034894,2]
[392751742,1761912638004,-409.91223923,0.00034894,7]
[392751743,1761912638096,-500.0,0.00034894,7]
[392751744,1761912638106,-500.0,0.00034894,7]
[392751745,1761912638116,-500.0,0.00034894,7]
[392751746,1761912638126,-646.98636608,0.00034894,2]
[392751747,1761912638135,-274.04226675,0.00034894,7]
[392751748,1761912638144,-151.0,0.00034895,2]
[392751749,1761912638154,-151.0,0.00034895,2]
[392751750,1761912638164,-151.0,0.00034895,2]
[392751751,1761912638174,-151.0,0.00034895,2]
[392751752,1761912638183,-151.0,0.00034895,2]
[392751753,1761912638193,-151.0,0.00034895,2]
[392751754,1761912638203,-151.0,0.00034895,2]
[392751755,1761912638212,-151.0,0.00034895,2]
[392751756,1761912638222,-1000.0,0.00034895,2]
[392751757,1761912638231,-151.0,0.00034895,2]
[392751758,1761912638240,-1000.0,0.00034895,2]
[392751759,1761912638249,-151.0,0.00034895,2]
[392751760,1761912638259,-1000.0,0.00034895,2]
[392751761,1761912638268,-151.0,0.00034895,2]
[392751762,1761912638278,-1000.0,0.00034895,2]
[392751763,1761912638287,-151.0,0.00034895,2]
[392751764,1761912638297,-1000.0,0.00034895,2]
[392751765,1761912638306,-151.0,0.00034895,2]
[392751766,1761912638315,-848.33968851,0.00034895,2]
[392751767,1761912638325,-151.0,0.00034895,2]
[392751768,1761912638334,-151.0,0.00034895,2]
[392751769,1761912638343,-151.0,0.00034895,2]
[392751770,1761912638352,-151.0,0.00034895,2]
[392751771,1761912638362,-151.0,0.00034895,2]
[392751772,1761912638371,-151.0,0.00034895,2]
[392751773,1761912638380,-151.0,0.00034895,2]
[392751774,1761912638389,-351.11309148,0.00034906,2]
[392751775,1761912638398,-12785.4417037,0.00034916,2]
[392751776,1761912638410,-17002.15063181,0.00034916,2]
[392751777,1761912638420,-1790.48099713,0.00034916,2]
[392751778,1761912638431,-460.0,0.00034916,2]
[392751779,1761912638442,-540.0,0.00034916,2]
[392751789,1761912639922,-34669.61596199,0.00034916,2]
[392751796,1761912639974,-645.88935581,0.00034916,2]
[392751836,1761912642873,-603.61779246,0.00034894,7]
[392751837,1761912642882,-3278.08220752,0.00034916,2]
[392751838,1761912643195,-5702.4503327,0.00034916,2]
[392751848,1761912646038,-298.642731,0.00034894,7]
[392751849,1761912646047,-433.12763715,0.00034894,7]
[392751850,1761912646057,-200.0,0.00034894,2]
[392751851,1761912646066,-167.80660118,0.00034894,7]
[392751852,1761912646075,-500.0,0.00034894,7]
[392751853,1761912646085,-279.43653202,0.00034894,7]
[392751854,1761912646094,-384.11,0.00034906,10]
[392751855,1761912646103,-67738.9691131,0.00034916,2]
[392751862,1761912697156,40000.0,0.00037198,60]
[392751863,1761912717090,958.66427529,0.00021389,2]
[392751961,1761913727261,45019.0,0.00025,30]
[392751965,1761913759907,229.085731,0.00013699,2]
[392751966,1761913760000,229.085731,0.00020187,2]
[392751969,1761913788698,10000.0,0.000255,2]
[392751970,1761913816473,0.01,0.000255,2]
[392751971,1761913816496,1783.49,0.000255,2]
[392751982,1761913831942,-229.085731,0.00026676,2]
[392751983,1761913831952,-270.57749686,0.0002739,2]
[392751984,1761913831961,-1250.8060961,0.00028,5]
[392751985,1761913831971,-500.0,0.00029992,7]
[392751986,1761913831981,-327.5234944,0.0003228,2]
[392751987,1761913832053,-902.47037529,0.0003228,2]
[392751988,1761913832063,-229.085731,0.00033165,2]
[392751989,1761913832072,-150.09193184,0.00033404,117]
[392751990,1761913832082,-154.19344,0.00033504,2]
[392751991,1761913832093,-402.3611725,0.00034164,30]
[392751992,1761913832103,-598.0,0.00034317,2]
[392751993,1761913832112,-154.19344,0.00034463,15]
[392751994,1761913832122,-1723.12682482,0.00034463,2]
[392751995,1761913832137,-252.66599197,0.00034463,2]
[392751996,1761913832149,-598.0,0.00034493,2]
[392751997,1761913832160,-300.0,0.00034685,2]
[392751998,1761913832169,-1922.96410753,0.00034686,2]
[392752008,1761913837993,-1752.72663141,0.00034686,2]
[392752009,1761913838002,-1672.09764207,0.0003477,2]
[392752010,1761913838011,-1616.09555486,0.0003477,2]
[392752011,1761913838021,-3857.62090263,0.00034774,2]
[392752012,1761913838030,-312.93491093,0.00034795,2]
[392752014,1761913838039,-151.0,0.00034795,2]
[392752016,1761913838049,-151.0,0.00034795,2]
[392752018,1761913838058,-151.0,0.00034795,2]
[392752020,1761913838067,-151.0,0.00034795,2]
[392752021,1761913838076,-160.10706751,0.00034795,2]
[392752022,1761913838085,-151.0,0.00034795,2]
[392752023,1761913838094,-151.0,0.00034795,2]
[392752024,1761913838104,-151.0,0.00034795,2]
[392752025,1761913838113,-297.30573806,0.00034795,2]
[392752026,1761913838122,-151.0,0.00034795,2]
[392752027,1761913838131,-278.06413957,0.00034795,2]
[392752028,1761913838140,-151.0,0.00034795,2]
[392752029,1761913838152,-117.70262368,0.00034795,2]
[392752030,1761913838164,-33.29737632,0.00034795,2]
[392752031,1761913838173,-151.0,0.00034795,2]
[392752032,1761913838183,-151.0,0.00034795,2]
[392752033,1761913838193,-23.72967732,0.00034795,2]
[392752034,1761913838204,-127.27032268,0.00034795,2]
[392752035,1761913838213,-151.0,0.00034795,2]
[392752036,1761913838223,-151.0,0.00034795,2]
[392752037,1761913838233,-151.0,0.00034795,2]
[392752038,1761913838242,-151.0,0.00034795,2]
[392752039,1761913838251,-151.0,0.00034795,2]
[392752040,1761913838261,-151.0,0.00034795,2]
[392752041,1761913838270,-117.82063942,0.00034795,2]
[392752054,1761913840203,-33.17936058,0.00034795,2]
[392752055,1761913840212,-151.0,0.00034795,2]
[392752056,1761913840224,-151.0,0.00034795,2]
[392752057,1761913840233,-320.09,0.00034806,10]
[392752058,1761913840242,-266.74,0.00034806,10]
[392752059,1761913840251,-222.29,0.00034806,10]
[392752060,1761913840260,-500.0,0.00034814,7]
[392752061,1761913840269,-500.0,0.00034814,7]
[392752062,1761913840278,-500.0,0.00034814,7]
[392752063,1761913840287,-207.8914152,0.00034814,7]
[392752064,1761913840297,-500.0,0.00034814,7]
[392752065,1761913840306,-500.0,0.00034814,2]
[392752066,1761913840315,-500.0,0.00034814,7]
[392752067,1761913840324,-500.0,0.00034814,7]
[392752068,1761913840333,-500.0,0.00034814,7]
[392752069,1761913840342,-500.0,0.00034814,7]
[392752070,1761913840352,-500.0,0.00034814,7]
[392752071,1761913840361,-500.0,0.00034814,2]
[392752072,1761913840370,-248.19786071,0.00034814,7]
[392752225,1761913843050,-251.80213929,0.00034814,7]
[392752226,1761913843060,-327.71492566,0.00034814,7]
[392752227,1761913843069,-330.16960237,0.00034814,7]
[392752228,1761913843169,-169.83039763,0.00034814,7]
[392752229,1761913843178,-500.0,0.00034814,7]
[392752230,1761913843187,-404.3624976,0.00034814,7]
[392752231,1761913843196,-500.0,0.00034814,7]
[392752232,1761913843205,-459.5212779,0.00034814,7]
[392752233,1761913843214,-500.0,0.00034814,2]
[392752234,1761913843224,-500.0,0.00034814,7]
[392752236,1761913843233,-500.0,0.00034814,7]
[392752238,1761913843242,-500.0,0.00034814,7]
[392752240,1761913843251,-503.62927904,0.00034814,7]
[392752242,1761913843260,-500.0,0.00034814,2]
[392752244,1761913843269,-500.0,0.00034814,7]
[392752246,1761913843278,-500.0,0.00034814,7]
[392752248,1761913843286,-500.0,0.00034814,2]
[392752250,1761913843295,-319.0622671,0.00034814,7]
[392752252,1761913843307,-180.9377329,0.00034814,7]
[392752253,1761913843317,-500.0,0.00034814,7]
[392752254,1761913843327,-500.0,0.00034814,7]
[392752256,1761913843336,-572.08442431,0.00034814,2]
[392752258,1761913843346,-500.0,0.00034814,7]
[392752259,1761913843355,-500.0,0.00034814,7]
[392752260,1761913843365,-526.82843942,0.00034814,7]
[392752261,1761913843375,-500.0,0.00034814,7]
[392752262,1761913843385,-500.0,0.00034814,7]
[392752263,1761913843394,-183.17918332,0.00034814,7]
[392752264,1761913843403,-500.0,0.00034814,7]
[392752265,1761913843413,-500.0,0.00034814,7]
[392752266,1761913843422,-500.0,0.00034815,2]
[392752267,1761913843438,-227.65686687,0.00034815,7]
[392752268,1761913843455,-151.0,0.00034815,2]
[392752269,1761913843468,-154.56633297,0.00034815,2]
[392752270,1761913843485,-500.0,0.00034815,2]
[392752271,1761913843501,-298.72982051,0.00034815,2]
[392752272,1761913843515,-500.0,0.00034815,2]
[392752273,1761913843532,-156.79151714,0.00034815,2]
[392752274,1761913843547,-500.0,0.00034815,2]
[392752275,1761913843561,-151.0,0.00034815,2]
[392752276,1761913843577,-500.0,0.00034815,2]
[392752277,1761913843591,-152.38065603,0.00034815,2]
[392752278,1761913843605,-151.0,0.00034815,2]
[392752279,1761913843618,-151.0,0.00034815,2]
[392752280,1761913843633,-151.0,0.00034815,2]
[392752281,1761913843649,-152.36699624,0.00034815,2]
[392752282,1761913843665,-151.0,0.00034815,2]
[392752283,1761913843680,-153.99809194,0.00034815,2]
[392752284,1761913843692,-134.79719145,0.00034815,2]
[392752300,1761913846080,-185.24,0.00034806,10]
[392752301,1761913846093,-16.20280855,0.00034815,2]
[392752302,1761913846107,-381.08801581,0.00034816,2]
[392752307,1761914277894,9975.55,0.00037207,120]
[392752324,1761914421515,8771.1426303,0.00037207,60]
[392752327,1761914652645,150.0,0.00025376,2]
[392752333,1761914980826,-278.89964765,0.0002589,2]
[392752351,1761915032156,-700.0,0.00027,2]
[392752352,1761915032166,-797.0,0.00028,3]
[392752353,1761915032175,-294.96935146,0.00029935,2]
[392752354,1761915032184,-154.19344,0.00033408,2]
[392752355,1761915032193,-183.56415457,0.00033511,3]
[392752356,1761915032202,-596.56749652,0.00034136,3]
[392752369,1761915038045,-4403.43250348,0.00034136,3]
[392752371,1761915038055,-158.82,0.00034438,2]
[392752373,1761915038065,-164.81006826,0.00034438,30]
[392752375,1761915038074,-1265.68997229,0.0003463,2]
[392752377,1761915038084,-839.6972941,0.00034637,2]
[392752379,1761915038094,-151.0,0.00034695,2]
[392752381,1761915038103,-151.0,0.00034695,2]
[392752382,1761915038113,-151.0,0.00034695,2]
[392752384,1761915038122,-151.0,0.00034695,2]
[392752386,1761915038132,-151.0,0.00034695,2]
[392752388,1761915038143,-151.0,0.00034695,2]
[392752390,1761915038152,-151.0,0.00034695,2]
[392752392,1761915038162,-151.0,0.00034695,2]
[392752394,1761915038172,-151.0,0.00034695,2]
[392752396,1761915038181,-151.0,0.00034695,2]
[392752398,1761915038190,-151.0,0.00034695,2]
[392752399,1761915038200,-151.0,0.00034695,2]
[392752401,1761915038209,-151.0,0.00034695,2]
[392752403,1761915038218,-151.0,0.00034695,2]
[392752405,1761915038228,-151.0,0.00034695,2]
[392752407,1761915038237,-151.0,0.00034695,2]
[392752409,1761915038247,-151.0,0.00034695,2]
[392752411,1761915038256,-151.0,0.00034695,2]
[392752413,1761915038266,-151.0,0.00034695,2]
[392752415,1761915038275,-151.0,0.00034695,2]
[392752417,1761915038284,-187.24,0.00034706,10]
[392752419,1761915038293,-156.03,0.00034706,10]
[392752421,1761915038304,-159.35980681,0.00034715,7]
[392752423,1761915038313,-500.0,0.00034715,7]
[392752425,1761915038323,-500.0,0.00034715,7]
[392752427,1761915038332,-341.34271381,0.00034715,2]
[392752429,1761915038340,-222.62547545,0.00034715,7]
[392752431,1761915038350,-500.0,0.00034715,7]
[392752432,1761915038359,-500.0,0.00034715,7]
[392752434,1761915038368,-500.0,0.00034715,7]
[392752436,1761915038377,-500.0,0.00034715,7]
[392752438,1761915038387,-500.0,0.00034715,7]
[392752440,1761915038396,-500.0,0.00034715,7]
[392752441,1761915038406,-350.64682185,0.00034715,7]
[392752443,1761915038415,-496.64480637,0.00034715,7]
[392752445,1761915038423,-500.0,0.00034715,7]
[392752446,1761915038432,-500.0,0.00034715,7]
[392752448,1761915038442,-500.0,0.00034715,7]
[392752450,1761915038451,-991.9173551,0.00034716,2]
[392752452,1761915038462,-18703.2621633,0.00034716,2]
[392752454,1761915038473,-1176.97972169,0.00034716,2]
[392752455,1761915038483,-21971.14309946,0.00034716,2]
[392752456,1761915038494,-886.6992,0.00034716,2]
[392752457,1761915038511,-780.2,0.00034706,10]
[392752458,1761915038521,-858.59467053,0.00034716,2]
[392752492,1761915040291,-57670.5,0.00034716,2]
[392752494,1761915040302,-1173.80152716,0.00034716,2]
[392752500,1761915040346,-4588.18246858,0.00034716,2]
[392752502,1761915040357,-542.73827184,0.00034716,2]
[392752598,1761915043317,-10306.49484366,0.00034716,2]
[392752599,1761915043329,-39437.32350875,0.00034716,2]
[392752754,1761915242533,-83405.46797667,0.00037207,30]
[392752755,1761915242559,-7041.0,0.00037207,30]
[392752756,1761915242587,-4756.0458439,0.00037207,35]
[392752821,1761915745872,-474.88772192,0.0002958,7]
[392752831,1761915842924,980.0,0.00026,3]
[392752917,1761916236871,-184.50047313,0.00031493,2]
[392752919,1761916236880,-331.76875077,0.00031493,2]
[392752920,1761916236890,-1000.0,0.00033151,120]
[392752922,1761916236899,-1000.0,0.00033425,120]
[392752924,1761916236908,-1000.0,0.00033699,120]
[392752926,1761916236917,-169.58352199,0.00033963,10]
[392752928,1761916236926,-131.88725412,0.00033973,120]
[392752940,1761916238208,-868.11274588,0.00033973,120]
[392752942,1761916238218,-317.5395745,0.00034164,30]
[392752944,1761916238228,-190.5964397,0.000342,30]
[392752946,1761916238238,-190.5964397,0.000342,30]
[392752948,1761916238248,-817.6612136,0.000342,30]
[392752950,1761916238259,-200.0,0.00034202,2]
[392752952,1761916238268,-1000.0,0.00034247,120]
[392752954,1761916238277,-843.79331486,0.00034516,2]
[392752956,1761916238287,-1000.0,0.00034521,120]
[392752958,1761916238296,-160.0,0.00034522,2]
[392752960,1761916238305,-300.0,0.00034594,2]
[392752962,1761916238315,-151.0,0.00034595,2]
[392752964,1761916238324,-151.0,0.00034595,2]
[392752966,1761916238333,-151.0,0.00034595,2]
[392752968,1761916238343,-151.0,0.00034595,2]
[392752970,1761916238352,-151.0,0.00034595,2]
[392752972,1761916238362,-151.0,0.00034595,2]
[392752974,1761916238371,-151.0,0.00034595,2]
[392752976,1761916238381,-151.0,0.00034595,2]
[392752978,1761916238391,-151.0,0.00034595,2]
[392752980,1761916238401,-151.0,0.00034595,2]
[392752982,1761916238411,-151.0,0.00034595,2]
[392752984,1761916238420,-151.0,0.00034595,2]
[392752986,1761916238429,-151.0,0.00034595,2]
[392752987,1761916238439,-151.0,0.00034595,2]
[392752989,1761916238449,-151.0,0.00034595,2]
[392752991,1761916238460,-151.0,0.00034595,2]
[392752993,1761916238469,-151.0,0.00034595,2]
[392752995,1761916238478,-151.0,0.00034595,2]
[392752997,1761916238488,-151.0,0.00034595,2]
[392753000,1761916238498,-151.0,0.00034595,2]
[392753001,1761916238507,-500.0,0.00034614,7]
[392753004,1761916238517,-293.61626532,0.00034614,2]
[392753006,1761916238526,-554.06309176,0.00034614,7]
[392753007,1761916238536,-500.0,0.00034614,7]
[392753009,1761916238546,-166.64628063,0.00034614,7]
[392753085,1761916243381,-202.71454972,0.00034614,7]
[392753086,1761916243391,-304.6273322,0.00034614,7]
[392753087,1761916243474,-112.01607874,0.00034614,7]
[392753088,1761916243484,-410.09409102,0.00034614,4]
[392753089,1761916243495,-89.90590898,0.00034614,4]
[392753090,1761916243504,-420.42932088,0.00034614,4]
[392753091,1761916243519,-79.57067912,0.00034614,4]
[392753092,1761916243529,-500.0,0.00034614,4]
[392753093,1761916243538,-500.0,0.00034614,4]
[392753094,1761916243547,-500.0,0.00034614,4]
[392753095,1761916243557,-500.0,0.00034614,4]
[392753096,1761916243566,-500.0,0.00034614,4]
[392753097,1761916243575,-500.0,0.00034614,4]
[392753098,1761916243584,-500.0,0.00034614,4]
[392753099,1761916243593,-500.0,0.00034614,4]
[392753100,1761916243603,-500.0,0.00034614,4]
[392753101,1761916243611,-526.48585543,0.00034614,4]
[392753102,1761916243621,-500.0,0.00034614,4]
[392753103,1761916243631,-500.0,0.00034614,4]
[392753104,1761916243640,-500.0,0.00034614,4]
[392753105,1761916243653,-500.0,0.00034614,4]
[392753106,1761916243662,-500.0,0.00034614,4]
[392753107,1761916243672,-500.0,0.00034614,4]
[392753108,1761916243681,-305.9099758,0.00034614,2]
[392753109,1761916243701,-194.0900242,0.00034614,2]
[392753110,1761916243711,-739.1,0.00034614,4]
[392753111,1761916243720,-500.0,0.00034614,2]
[392753112,1761916243729,-500.0,0.00034614,4]
[392753113,1761916243739,-500.0,0.00034614,4]
[392753114,1761916243748,-506.54945242,0.00034615,4]
[392753115,1761916243758,-203.02585197,0.00034615,4]
[392753116,1761916243767,-500.0,0.00034615,4]
[392753117,1761916243775,-500.0,0.00034615,4]
[392753118,1761916243784,-500.0,0.00034615,4]
[392753119,1761916243794,-500.0,0.00034615,4]
[392753120,1761916243803,-10.12666899,0.00034615,4]
[392753129,1761916246479,-489.87333101,0.00034615,4]
[392753130,1761916246489,-502.8505353,0.00034615,4]
[392753131,1761916246499,-500.0,0.00034615,4]
[392753132,1761916246509,-500.0,0.00034615,4]
[392753133,1761916246518,-504.2389275,0.00034615,4]
[392753134,1761916246530,-500.0,0.00034615,4]
[392753135,1761916246540,-500.0,0.00034615,4]
[392753136,1761916246550,-500.0,0.00034615,4]
[392753137,1761916246560,-200.53192654,0.00034615,4]
[392753138,1761916246570,-500.0,0.00034615,4]
[392753139,1761916246579,-500.0,0.00034615,4]
[392753140,1761916246589,-500.0,0.00034615,4]
[392753141,1761916246598,-500.0,0.00034615,4]
[392753142,1761916246610,-502.99309829,0.00034615,4]
[392753143,1761916246628,-500.0,0.00034615,4]
[392753144,1761916246642,-500.0,0.00034615,4]
[392753145,1761916246660,-500.0,0.00034615,4]
[392753146,1761916246677,-500.0,0.00034615,4]
[392753147,1761916246693,-313.21970817,0.00034615,4]
[392753148,1761916246708,-500.0,0.00034615,4]
[392753149,1761916246724,-500.0,0.00034615,4]
[392753150,1761916246740,-500.0,0.00034615,4]
[392753151,1761916246753,-522.40013901,0.00034615,4]
[392753152,1761916246769,-500.0,0.00034615,4]
[392753153,1761916246782,-500.0,0.00034615,4]
[392753154,1761916246794,-500.0,0.00034615,4]
[392753155,1761916246807,-500.0,0.00034615,4]
[392753156,1761916246822,-500.0,0.00034615,4]
[392753157,1761916246838,-500.0,0.00034615,4]
[392753158,1761916246853,-500.0,0.00034615,4]
[392753159,1761916246870,-500.0,0.00034615,4]
[392753160,1761916246883,-500.0,0.00034615,4]
[392753161,1761916246896,-2659.78,0.00034615,4]
[392753162,1761916246914,-500.0,0.00034615,4]
[392753163,1761916246925,-500.0,0.00034615,4]
[392753164,1761916246938,-510.105169,0.00034615,4]
[392753165,1761916246951,-500.0,0.00034615,4]